[Event "Live Chess"]
[Site "Chess.com"]
[Date "2010.12.05"]
[Round "-"]
[White "hipposcottimus"]
[Black "unga123"]
[Result "0-1"]
[CurrentPosition "2k5/p2nQ1p1/6p1/1pP1Pp2/3P1P2/7r/P2B1R2/R5Kq w - -"]
[Timezone "UTC"]
[ECO "B12"]
[ECOUrl "https://www.chess.com/openings/Caro-Kann-Defense-Advance-Variation-3...Bf5"]
[UTCDate "2010.12.05"]
[UTCTime "23:58:49"]
[WhiteElo "1533"]
[BlackElo "1569"]
[TimeControl "60"]
[Termination "unga123 won by checkmate"]
[StartTime "23:58:49"]
[EndDate "2010.12.06"]
[EndTime "00:00:39"]
[Link "https://www.chess.com/game/live/74433130"]

1. e4 {[%clk 0:01:00]} 1... c6 {[%clk 0:01:00]} 2. d4 {[%clk 0:00:58.2]} 2... d5 {[%clk 0:01:00]} 3. e5 {[%clk 0:00:57.9]} 3... Bf5 {[%clk 0:00:59.3]} 4. f4 {[%clk 0:00:57.6]} 4... e6 {[%clk 0:00:58.6]} 5. Nf3 {[%clk 0:00:55.9]} 5... Nd7 {[%clk 0:00:57.2]} 6. c4 {[%clk 0:00:55.5]} 6... Qa5+ {[%clk 0:00:55]} 7. Bd2 {[%clk 0:00:53.3]} 7... Qb6 {[%clk 0:00:52.7]} 8. c5 {[%clk 0:00:51.6]} 8... Qxb2 {[%clk 0:00:51.6]} 9. Nc3 {[%clk 0:00:50.9]} 9... Qa3 {[%clk 0:00:49.7]} 10. Be2 {[%clk 0:00:47.9]} 10... b6 {[%clk 0:00:46.8]} 11. O-O {[%clk 0:00:46.8]} 11... b5 {[%clk 0:00:42.2]} 12. Qc2 {[%clk 0:00:45.1]} 12... Qa6 {[%clk 0:00:41]} 13. Qd1 {[%clk 0:00:43]} 13... Ne7 {[%clk 0:00:40.5]} 14. Nh4 {[%clk 0:00:39.1]} 14... Ng6 {[%clk 0:00:36.2]} 15. Nxf5 {[%clk 0:00:37.9]} 15... exf5 {[%clk 0:00:35.3]} 16. Bh5 {[%clk 0:00:36.6]} 16... Be7 {[%clk 0:00:33.8]} 17. Bxg6 {[%clk 0:00:35.6]} 17... hxg6 {[%clk 0:00:31.3]} 18. Qb3 {[%clk 0:00:28.7]} 18... O-O-O {[%clk 0:00:30.1]} 19. Nxd5 {[%clk 0:00:27.4]} 19... cxd5 {[%clk 0:00:28.8]} 20. Qxd5 {[%clk 0:00:27.1]} 20... Qb7 {[%clk 0:00:23]} 21. Qxf7 {[%clk 0:00:22.9]} 21... Rh7 {[%clk 0:00:15.8]} 22. Qxe7 {[%clk 0:00:21.3]} 22... Rdh8 {[%clk 0:00:14.6]} 23. h3 {[%clk 0:00:16.6]} 23... Rxh3 {[%clk 0:00:12.6]} 24. gxh3 {[%clk 0:00:14.6]} 24... Rxh3 {[%clk 0:00:11.8]} 25. Rf2 {[%clk 0:00:13.1]} 25... Qh1# {[%clk 0:00:10.1]} 0-1

[Event "Live Chess"]
[Site "Chess.com"]
[Date "2010.12.05"]
[Round "-"]
[White "unga123"]
[Black "hipposcottimus"]
[Result "1-0"]
[CurrentPosition "2r2rk1/6pQ/2p3B1/4P3/1b1pR3/1P6/1PPq1PPP/R5K1 b - -"]
[Timezone "UTC"]
[ECO "C45"]
[ECOUrl "https://www.chess.com/openings/Scotch-Game"]
[UTCDate "2010.12.05"]
[UTCTime "23:56:36"]
[WhiteElo "1562"]
[BlackElo "1540"]
[TimeControl "60"]
[Termination "unga123 won by checkmate"]
[StartTime "23:56:36"]
[EndDate "2010.12.05"]
[EndTime "23:58:26"]
[Link "https://www.chess.com/game/live/74432653"]

1. e4 {[%clk 0:01:00]} 1... e5 {[%clk 0:01:00]} 2. Nf3 {[%clk 0:00:59.5]} 2... Nc6 {[%clk 0:00:59.6]} 3. d4 {[%clk 0:00:58.8]} 3... d5 {[%clk 0:00:55.6]} 4. dxe5 {[%clk 0:00:56.4]} 4... d4 {[%clk 0:00:50.3]} 5. Bd3 {[%clk 0:00:52.7]} 5... Be6 {[%clk 0:00:44.5]} 6. O-O {[%clk 0:00:51.4]} 6... f6 {[%clk 0:00:41.7]} 7. exf6 {[%clk 0:00:50]} 7... Nxf6 {[%clk 0:00:40.3]} 8. Bg5 {[%clk 0:00:49.5]} 8... Be7 {[%clk 0:00:38.6]} 9. Bxf6 {[%clk 0:00:47.7]} 9... Bxf6 {[%clk 0:00:37.9]} 10. Re1 {[%clk 0:00:46.4]} 10... O-O {[%clk 0:00:35.9]} 11. e5 {[%clk 0:00:45.6]} 11... Be7 {[%clk 0:00:34]} 12. Nbd2 {[%clk 0:00:42.8]} 12... Bg4 {[%clk 0:00:33.6]} 13. Nb3 {[%clk 0:00:40.9]} 13... a5 {[%clk 0:00:25.5]} 14. Be2 {[%clk 0:00:39.7]} 14... Bxf3 {[%clk 0:00:23.5]} 15. Bxf3 {[%clk 0:00:38.5]} 15... a4 {[%clk 0:00:23.3]} 16. Bxc6 {[%clk 0:00:36.6]} 16... axb3 {[%clk 0:00:22.2]} 17. Bxb7 {[%clk 0:00:34.8]} 17... Rb8 {[%clk 0:00:19.1]} 18. Be4 {[%clk 0:00:30.2]} 18... Rc8 {[%clk 0:00:18.6]} 19. axb3 {[%clk 0:00:28.5]} 19... c6 {[%clk 0:00:17.9]} 20. Qd3 {[%clk 0:00:27.3]} 20... Bb4 {[%clk 0:00:15.9]} 21. Bxh7+ {[%clk 0:00:25.8]} 21... Kh8 {[%clk 0:00:14]} 22. Re4 {[%clk 0:00:24.5]} 22... Qg5 {[%clk 0:00:07.4]} 23. Qh3 {[%clk 0:00:22.7]} 23... Qd2 {[%clk 0:00:03.5]} 24. Bg6+ {[%clk 0:00:20.5]} 24... Kg8 {[%clk 0:00:03.1]} 25. Qh7# {[%clk 0:00:19.3]} 1-0

[Event "Live Chess"]
[Site "Chess.com"]
[Date "2010.12.05"]
[Round "-"]
[White "hipposcottimus"]
[Black "Strangelove13"]
[Result "1-0"]
[CurrentPosition "r1b1kQ2/pppp3p/2n5/6P1/3P1R2/2P5/PP4PP/RN4K1 b - -"]
[Timezone "UTC"]
[ECO "C40"]
[ECOUrl "https://www.chess.com/openings/Kings-Pawn-Opening-Kings-Knight-Busch-Gass-Gambit"]
[UTCDate "2010.12.05"]
[UTCTime "23:52:47"]
[WhiteElo "1548"]
[BlackElo "1330"]
[TimeControl "60"]
[Termination "hipposcottimus won by checkmate"]
[StartTime "23:52:47"]
[EndDate "2010.12.05"]
[EndTime "23:54:25"]
[Link "https://www.chess.com/game/live/74431798"]

1. e4 {[%clk 0:01:00]} 1... e5 {[%clk 0:01:00]} 2. Nf3 {[%clk 0:00:59.7]} 2... Bc5 {[%clk 0:00:58]} 3. Bc4 {[%clk 0:00:59.4]} 3... g5 {[%clk 0:00:56.7]} 4. Nxe5 {[%clk 0:00:57.2]} 4... Qf6 {[%clk 0:00:51.6]} 5. Bxf7+ {[%clk 0:00:48.2]} 5... Qxf7 {[%clk 0:00:48.3]} 6. Nxf7 {[%clk 0:00:45.3]} 6... Kxf7 {[%clk 0:00:47.1]} 7. d4 {[%clk 0:00:45]} 7... Bb4+ {[%clk 0:00:44.9]} 8. c3 {[%clk 0:00:43.4]} 8... Be7 {[%clk 0:00:42.7]} 9. O-O {[%clk 0:00:43.2]} 9... Nf6 {[%clk 0:00:41.5]} 10. f4 {[%clk 0:00:42.9]} 10... Nxe4 {[%clk 0:00:37.8]} 11. fxg5+ {[%clk 0:00:42.1]} 11... Nf2 {[%clk 0:00:32.3]} 12. Rxf2+ {[%clk 0:00:40.2]} 12... Ke8 {[%clk 0:00:31.4]} 13. Qf3 {[%clk 0:00:39.7]} 13... Bd6 {[%clk 0:00:28.9]} 14. Qf7+ {[%clk 0:00:35.8]} 14... Kd8 {[%clk 0:00:27.6]} 15. Qf6+ {[%clk 0:00:35.1]} 15... Ke8 {[%clk 0:00:23.6]} 16. Qxh8+ {[%clk 0:00:34.8]} 16... Ke7 {[%clk 0:00:21.7]} 17. Qf6+ {[%clk 0:00:34.2]} 17... Ke8 {[%clk 0:00:20.2]} 18. Bf4 {[%clk 0:00:31.1]} 18... Bxf4 {[%clk 0:00:08.1]} 19. Rxf4 {[%clk 0:00:29.2]} 19... Nc6 {[%clk 0:00:04.9]} 20. Qf8# {[%clk 0:00:27.8]} 1-0

[Event "Live Chess"]
[Site "Chess.com"]
[Date "2010.12.05"]
[Round "-"]
[White "Strangelove13"]
[Black "hipposcottimus"]
[Result "0-1"]
[CurrentPosition "2kr1b1r/ppp2ppp/8/4p3/3n4/3PB3/1Pq2P1P/2K5 w - -"]
[Timezone "UTC"]
[ECO "C47"]
[ECOUrl "https://www.chess.com/openings/Four-Knights-Game-Italian-Variation"]
[UTCDate "2010.12.05"]
[UTCTime "23:51:20"]
[WhiteElo "1330"]
[BlackElo "1548"]
[TimeControl "60"]
[Termination "hipposcottimus won by checkmate"]
[StartTime "23:51:20"]
[EndDate "2010.12.05"]
[EndTime "23:52:32"]
[Link "https://www.chess.com/game/live/74431498"]

1. e4 {[%clk 0:01:00]} 1... e5 {[%clk 0:01:00]} 2. Nf3 {[%clk 0:00:59.5]} 2... Nc6 {[%clk 0:00:58.3]} 3. Nc3 {[%clk 0:00:59]} 3... Nf6 {[%clk 0:00:57.9]} 4. Bc4 {[%clk 0:00:58.2]} 4... d5 {[%clk 0:00:54.2]} 5. d3 {[%clk 0:00:57.3]} 5... dxc4 {[%clk 0:00:53]} 6. Nd5 {[%clk 0:00:55]} 6... Nxd5 {[%clk 0:00:50.9]} 7. exd5 {[%clk 0:00:54.5]} 7... Qxd5 {[%clk 0:00:50.4]} 8. Be3 {[%clk 0:00:52.2]} 8... Bg4 {[%clk 0:00:46.8]} 9. Qd2 {[%clk 0:00:49.6]} 9... Bxf3 {[%clk 0:00:45.1]} 10. gxf3 {[%clk 0:00:49]} 10... Qxf3 {[%clk 0:00:44.3]} 11. Rg1 {[%clk 0:00:45.8]} 11... O-O-O {[%clk 0:00:43.9]} 12. Rg3 {[%clk 0:00:42.5]} 12... Qh1+ {[%clk 0:00:41.9]} 13. Rg1 {[%clk 0:00:40.2]} 13... Qxg1+ {[%clk 0:00:40.4]} 14. Ke2 {[%clk 0:00:39.5]} 14... Qxa1 {[%clk 0:00:39.1]} 15. Qc3 {[%clk 0:00:37.1]} 15... Qxa2 {[%clk 0:00:37.9]} 16. Qxc4 {[%clk 0:00:34.2]} 16... Nd4+ {[%clk 0:00:30.1]} 17. Kd2 {[%clk 0:00:32]} 17... Qxc4 {[%clk 0:00:29.5]} 18. Kc1 {[%clk 0:00:29.6]} 18... Qxc2# {[%clk 0:00:27.6]} 0-1

[Event "Live Chess"]
[Site "Chess.com"]
[Date "2010.12.05"]
[Round "-"]
[White "hipposcottimus"]
[Black "Strangelove13"]
[Result "1-0"]
[CurrentPosition "1k5r/1p1r1pp1/1B1p2q1/3Pn3/8/2Q3Np/PPPN2PP/R4RK1 b - -"]
[Timezone "UTC"]
[ECO "C40"]
[ECOUrl "https://www.chess.com/openings/Kings-Pawn-Opening-Kings-Knight-Busch-Gass-Gambit-3.Nxe5"]
[UTCDate "2010.12.05"]
[UTCTime "23:49:08"]
[WhiteElo "1548"]
[BlackElo "1330"]
[TimeControl "60"]
[Termination "hipposcottimus won on time"]
[StartTime "23:49:08"]
[EndDate "2010.12.05"]
[EndTime "23:51:02"]
[Link "https://www.chess.com/game/live/74431006"]

1. e4 {[%clk 0:01:00]} 1... e5 {[%clk 0:01:00]} 2. Nf3 {[%clk 0:00:59.7]} 2... Bc5 {[%clk 0:00:56.9]} 3. Nxe5 {[%clk 0:00:56.5]} 3... Bxf2+ {[%clk 0:00:53.9]} 4. Kxf2 {[%clk 0:00:53.9]} 4... Qf6+ {[%clk 0:00:53.2]} 5. Nf3 {[%clk 0:00:52]} 5... Ne7 {[%clk 0:00:50.6]} 6. e5 {[%clk 0:00:51.4]} 6... Qe6 {[%clk 0:00:48.5]} 7. d4 {[%clk 0:00:50.3]} 7... h6 {[%clk 0:00:46.7]} 8. d5 {[%clk 0:00:49.1]} 8... Qg6 {[%clk 0:00:42.9]} 9. Bd3 {[%clk 0:00:48.7]} 9... Qh5 {[%clk 0:00:39]} 10. Rf1 {[%clk 0:00:47.5]} 10... d6 {[%clk 0:00:35.8]} 11. Kg1 {[%clk 0:00:47]} 11... Bg4 {[%clk 0:00:32.9]} 12. Be2 {[%clk 0:00:44.9]} 12... Nd7 {[%clk 0:00:29.8]} 13. Nd4 {[%clk 0:00:38.6]} 13... Bxe2 {[%clk 0:00:27.1]} 14. Nxe2 {[%clk 0:00:38.3]} 14... O-O-O {[%clk 0:00:24.6]} 15. Ng3 {[%clk 0:00:37.9]} 15... Qg6 {[%clk 0:00:22.8]} 16. exd6 {[%clk 0:00:34.8]} 16... cxd6 {[%clk 0:00:20.7]} 17. Be3 {[%clk 0:00:33.1]} 17... Nf5 {[%clk 0:00:17.3]} 18. Nxf5 {[%clk 0:00:29.4]} 18... h5 {[%clk 0:00:16.2]} 19. Bxa7 {[%clk 0:00:28]} 19... Ne5 {[%clk 0:00:13]} 20. Bb6 {[%clk 0:00:27.2]} 20... Rd7 {[%clk 0:00:10.7]} 21. Qd4 {[%clk 0:00:23.6]} 21... h4 {[%clk 0:00:06.4]} 22. Qc3+ {[%clk 0:00:21.9]} 22... Kb8 {[%clk 0:00:03.7]} 23. Nd2 {[%clk 0:00:18.9]} 23... h3 {[%clk 0:00:02.1]} 24. Ng3 {[%clk 0:00:16.3]} 1-0

[Event "Live Chess"]
[Site "Chess.com"]
[Date "2010.12.05"]
[Round "-"]
[White "Strangelove13"]
[Black "hipposcottimus"]
[Result "0-1"]
[CurrentPosition "8/pp6/6pk/n7/4R3/4P3/6r1/r2K4 w - -"]
[Timezone "UTC"]
[ECO "C47"]
[ECOUrl "https://www.chess.com/openings/Four-Knights-Game-Italian-Variation"]
[UTCDate "2010.12.05"]
[UTCTime "23:46:56"]
[WhiteElo "1330"]
[BlackElo "1548"]
[TimeControl "60"]
[Termination "hipposcottimus won by checkmate"]
[StartTime "23:46:56"]
[EndDate "2010.12.05"]
[EndTime "23:48:44"]
[Link "https://www.chess.com/game/live/74430559"]

1. e4 {[%clk 0:01:00]} 1... e5 {[%clk 0:01:00]} 2. Nf3 {[%clk 0:00:58.9]} 2... Nc6 {[%clk 0:00:59.7]} 3. Nc3 {[%clk 0:00:57.7]} 3... Nf6 {[%clk 0:00:59.4]} 4. Bc4 {[%clk 0:00:56.7]} 4... Bb4 {[%clk 0:00:58.9]} 5. Ng5 {[%clk 0:00:55]} 5... O-O {[%clk 0:00:57]} 6. h4 {[%clk 0:00:51.2]} 6... Bxc3 {[%clk 0:00:52.2]} 7. dxc3 {[%clk 0:00:46.9]} 7... d5 {[%clk 0:00:51.9]} 8. exd5 {[%clk 0:00:45.1]} 8... Na5 {[%clk 0:00:51.6]} 9. Bd3 {[%clk 0:00:43]} 9... e4 {[%clk 0:00:51]} 10. Be2 {[%clk 0:00:40.9]} 10... c6 {[%clk 0:00:46.5]} 11. c4 {[%clk 0:00:39.9]} 11... cxd5 {[%clk 0:00:45.3]} 12. cxd5 {[%clk 0:00:38.4]} 12... Nxd5 {[%clk 0:00:45]} 13. Be3 {[%clk 0:00:32.6]} 13... Nxe3 {[%clk 0:00:43.4]} 14. fxe3 {[%clk 0:00:31.2]} 14... f6 {[%clk 0:00:39.2]} 15. Qxd8 {[%clk 0:00:27.1]} 15... Rxd8 {[%clk 0:00:37.3]} 16. Kf2 {[%clk 0:00:25.4]} 16... fxg5 {[%clk 0:00:36]} 17. hxg5 {[%clk 0:00:23.6]} 17... Rf8+ {[%clk 0:00:35.7]} 18. Ke1 {[%clk 0:00:21.6]} 18... Rf5 {[%clk 0:00:35.4]} 19. Rh5 {[%clk 0:00:18.8]} 19... g6 {[%clk 0:00:33.8]} 20. Rxh7 {[%clk 0:00:16.9]} 20... Kxh7 {[%clk 0:00:32.2]} 21. Bg4 {[%clk 0:00:13]} 21... Rxg5 {[%clk 0:00:31.9]} 22. Bxc8 {[%clk 0:00:11.6]} 22... Rxc8 {[%clk 0:00:31.7]} 23. Ke2 {[%clk 0:00:09.1]} 23... Rxc2+ {[%clk 0:00:30.6]} 24. Kd1 {[%clk 0:00:07.1]} 24... Rgxg2 {[%clk 0:00:30.2]} 25. Rc1 {[%clk 0:00:04.6]} 25... Rxb2 {[%clk 0:00:28.7]} 26. Rc7+ {[%clk 0:00:02.7]} 26... Kh6 {[%clk 0:00:28.4]} 27. Re7 {[%clk 0:00:01.8]} 27... Rxa2 {[%clk 0:00:26]} 28. Rxe4 {[%clk 0:00:00.6]} 28... Ra1# {[%clk 0:00:25.6]} 0-1

[Event "Live Chess"]
[Site "Chess.com"]
[Date "2010.12.05"]
[Round "-"]
[White "hipposcottimus"]
[Black "Strangelove13"]
[Result "1-0"]
[CurrentPosition "8/2p3pk/6Qp/2B2P2/p5P1/1p6/PPP4P/6K1 b - -"]
[Timezone "UTC"]
[ECO "C55"]
[ECOUrl "https://www.chess.com/openings/Italian-Game-Anti-Fried-Liver-Defense"]
[UTCDate "2010.12.05"]
[UTCTime "23:44:50"]
[WhiteElo "1548"]
[BlackElo "1330"]
[TimeControl "60"]
[Termination "hipposcottimus won on time"]
[StartTime "23:44:50"]
[EndDate "2010.12.05"]
[EndTime "23:46:39"]
[Link "https://www.chess.com/game/live/74430042"]

1. e4 {[%clk 0:01:00]} 1... e5 {[%clk 0:01:00]} 2. Nf3 {[%clk 0:00:59.6]} 2... Nc6 {[%clk 0:00:58.8]} 3. Bc4 {[%clk 0:00:59.1]} 3... h6 {[%clk 0:00:57.1]} 4. d4 {[%clk 0:00:57]} 4... exd4 {[%clk 0:00:54.3]} 5. Nxd4 {[%clk 0:00:56.8]} 5... Nxd4 {[%clk 0:00:53.2]} 6. Qxd4 {[%clk 0:00:56.6]} 6... Nf6 {[%clk 0:00:52.5]} 7. Nc3 {[%clk 0:00:52.8]} 7... d6 {[%clk 0:00:51.4]} 8. O-O {[%clk 0:00:50.9]} 8... a6 {[%clk 0:00:44.5]} 9. Qe3 {[%clk 0:00:50.5]} 9... b5 {[%clk 0:00:43.3]} 10. Bb3 {[%clk 0:00:50.2]} 10... b4 {[%clk 0:00:40.9]} 11. Nd5 {[%clk 0:00:49.5]} 11... Nxd5 {[%clk 0:00:38.3]} 12. Bxd5 {[%clk 0:00:49.2]} 12... Qe7 {[%clk 0:00:34.5]} 13. f4 {[%clk 0:00:46.8]} 13... Be6 {[%clk 0:00:33.4]} 14. Bxa8 {[%clk 0:00:45.4]} 14... Qf6 {[%clk 0:00:29.9]} 15. Qa7 {[%clk 0:00:44.8]} 15... Be7 {[%clk 0:00:28]} 16. Qb8+ {[%clk 0:00:43.9]} 16... Bd8 {[%clk 0:00:25.4]} 17. Bc6+ {[%clk 0:00:43.3]} 17... Bd7 {[%clk 0:00:21.4]} 18. Bxd7+ {[%clk 0:00:42.5]} 18... Kxd7 {[%clk 0:00:20.7]} 19. e5 {[%clk 0:00:42.1]} 19... Qe6 {[%clk 0:00:17.3]} 20. exd6 {[%clk 0:00:40.7]} 20... Qxd6 {[%clk 0:00:15.3]} 21. Be3 {[%clk 0:00:38.7]} 21... Re8 {[%clk 0:00:13.5]} 22. Rfd1 {[%clk 0:00:38.2]} 22... Qxd1+ {[%clk 0:00:11.8]} 23. Rxd1+ {[%clk 0:00:36]} 23... Ke7 {[%clk 0:00:09.9]} 24. Bc5+ {[%clk 0:00:34.8]} 24... Kf6 {[%clk 0:00:07.9]} 25. Rxd8 {[%clk 0:00:33.5]} 25... Rxd8 {[%clk 0:00:06.2]} 26. Qxd8+ {[%clk 0:00:33.2]} 26... Kg6 {[%clk 0:00:05.2]} 27. g4 {[%clk 0:00:31.9]} 27... Kh7 {[%clk 0:00:04]} 28. Qe7 {[%clk 0:00:29.4]} 28... a5 {[%clk 0:00:03.3]} 29. Qxf7 {[%clk 0:00:28.5]} 29... a4 {[%clk 0:00:02.6]} 30. f5 {[%clk 0:00:26.8]} 30... b3 {[%clk 0:00:01.4]} 31. Qg6+ {[%clk 0:00:25.8]} 1-0

[Event "Live Chess"]
[Site "Chess.com"]
[Date "2010.12.05"]
[Round "-"]
[White "PaulJansen"]
[Black "hipposcottimus"]
[Result "1-0"]
[CurrentPosition "2r2rk1/p2q1ppp/n2P4/1B1QP3/8/2N2P2/PP3PPP/R1B1K2R w KQ -"]
[Timezone "UTC"]
[ECO "A40"]
[ECOUrl "https://www.chess.com/openings/Englund-Gambit-Declined-Reversed-Alekhine-Variation"]
[UTCDate "2010.12.05"]
[UTCTime "23:43:32"]
[WhiteElo "1750"]
[BlackElo "1548"]
[TimeControl "60"]
[Termination "PaulJansen won by resignation"]
[StartTime "23:43:32"]
[EndDate "2010.12.05"]
[EndTime "23:44:24"]
[Link "https://www.chess.com/game/live/74429773"]

1. Nf3 {[%clk 0:01:00]} 1... e5 {[%clk 0:01:00]} 2. d4 {[%clk 0:01:00]} 2... d6 {[%clk 0:00:59.5]} 3. dxe5 {[%clk 0:00:58.3]} 3... d5 {[%clk 0:00:59.2]} 4. c4 {[%clk 0:00:56]} 4... Bg4 {[%clk 0:00:58.8]} 5. cxd5 {[%clk 0:00:54.4]} 5... Bxf3 {[%clk 0:00:58.4]} 6. exf3 {[%clk 0:00:53.5]} 6... Bb4+ {[%clk 0:00:55.3]} 7. Nc3 {[%clk 0:00:51.9]} 7... Ne7 {[%clk 0:00:54.8]} 8. Qa4+ {[%clk 0:00:47.4]} 8... c6 {[%clk 0:00:50.2]} 9. d6 {[%clk 0:00:46]} 9... b5 {[%clk 0:00:47.2]} 10. Qxb4 {[%clk 0:00:45.1]} 10... Nd5 {[%clk 0:00:46.3]} 11. Qc5 {[%clk 0:00:43.2]} 11... Na6 {[%clk 0:00:42.6]} 12. Qxc6+ {[%clk 0:00:41.1]} 12... Qd7 {[%clk 0:00:40]} 13. Qxd5 {[%clk 0:00:40.5]} 13... Rc8 {[%clk 0:00:36.7]} 14. Bxb5 {[%clk 0:00:39.1]} 14... O-O {[%clk 0:00:36.3]} 1-0

[Event "Live Chess"]
[Site "Chess.com"]
[Date "2010.12.05"]
[Round "-"]
[White "terrapin"]
[Black "hipposcottimus"]
[Result "1-0"]
[CurrentPosition "1r1qr1k1/p4ppp/2P1bn2/1p1P4/2P5/2P1B3/P3BPPP/R2Q1RK1 w - -"]
[Timezone "UTC"]
[ECO "C20"]
[ECOUrl "https://www.chess.com/openings/Kings-Pawn-Opening-Leonardis-Variation"]
[UTCDate "2010.12.05"]
[UTCTime "19:03:16"]
[WhiteElo "1729"]
[BlackElo "1548"]
[TimeControl "60"]
[Termination "terrapin won by resignation"]
[StartTime "19:03:16"]
[EndDate "2010.12.05"]
[EndTime "19:04:26"]
[Link "https://www.chess.com/game/live/74358318"]

1. e4 {[%clk 0:01:00]} 1... e5 {[%clk 0:01:00]} 2. d3 {[%clk 0:00:59.2]} 2... Nc6 {[%clk 0:00:59.7]} 3. c4 {[%clk 0:00:58.8]} 3... Nf6 {[%clk 0:00:59.4]} 4. Nc3 {[%clk 0:00:58.4]} 4... Bb4 {[%clk 0:00:57.3]} 5. Be3 {[%clk 0:00:58]} 5... d5 {[%clk 0:00:56.1]} 6. exd5 {[%clk 0:00:55.9]} 6... Nd4 {[%clk 0:00:54.8]} 7. Ne2 {[%clk 0:00:54.5]} 7... O-O {[%clk 0:00:49.3]} 8. Nxd4 {[%clk 0:00:52.6]} 8... exd4 {[%clk 0:00:47.8]} 9. Bxd4 {[%clk 0:00:51.7]} 9... c5 {[%clk 0:00:47.4]} 10. Be3 {[%clk 0:00:49.6]} 10... Bf5 {[%clk 0:00:42.3]} 11. Be2 {[%clk 0:00:47.2]} 11... Re8 {[%clk 0:00:39.9]} 12. O-O {[%clk 0:00:43.8]} 12... Bxc3 {[%clk 0:00:29.4]} 13. bxc3 {[%clk 0:00:41.9]} 13... Bd7 {[%clk 0:00:28.4]} 14. d4 {[%clk 0:00:39.9]} 14... b5 {[%clk 0:00:26.3]} 15. dxc5 {[%clk 0:00:36.4]} 15... Rb8 {[%clk 0:00:26]} 16. c6 {[%clk 0:00:35.9]} 16... Be6 {[%clk 0:00:23]} 1-0

[Event "Live Chess"]
[Site "Chess.com"]
[Date "2010.12.05"]
[Round "-"]
[White "hipposcottimus"]
[Black "shibuna"]
[Result "1-0"]
[CurrentPosition "6rk/pp4r1/4Q2p/2p2B2/3p4/6P1/P4P1P/R5K1 b - -"]
[Timezone "UTC"]
[ECO "C40"]
[ECOUrl "https://www.chess.com/openings/Kings-Pawn-Opening-Kings-Knight-Busch-Gass-Gambit"]
[UTCDate "2010.12.05"]
[UTCTime "07:15:47"]
[WhiteElo "1392"]
[BlackElo "1534"]
[TimeControl "600"]
[Termination "hipposcottimus won by resignation"]
[StartTime "07:15:47"]
[EndDate "2010.12.05"]
[EndTime "07:18:52"]
[Link "https://www.chess.com/game/live/74201965"]

1. e4 {[%clk 0:10:00]} 1... e5 {[%clk 0:10:00]} 2. Nf3 {[%clk 0:09:52.8]} 2... Bc5 {[%clk 0:09:58.8]} 3. b4 {[%clk 0:09:39.4]} 3... Bxb4 {[%clk 0:09:53.4]} 4. c3 {[%clk 0:09:38.7]} 4... Bc5 {[%clk 0:09:51.8]} 5. d4 {[%clk 0:09:38]} 5... exd4 {[%clk 0:09:50.2]} 6. cxd4 {[%clk 0:09:37.5]} 6... Bb4+ {[%clk 0:09:49]} 7. Bd2 {[%clk 0:09:37.1]} 7... Bxd2+ {[%clk 0:09:47.6]} 8. Qxd2 {[%clk 0:09:36.1]} 8... d6 {[%clk 0:09:46.1]} 9. Nc3 {[%clk 0:09:35.4]} 9... Nf6 {[%clk 0:09:45.1]} 10. Bb5+ {[%clk 0:09:35]} 10... c6 {[%clk 0:09:44.2]} 11. Bd3 {[%clk 0:09:34.3]} 11... O-O {[%clk 0:09:43.9]} 12. O-O {[%clk 0:09:33.4]} 12... Nbd7 {[%clk 0:09:40.7]} 13. e5 {[%clk 0:09:32.6]} 13... dxe5 {[%clk 0:09:37.6]} 14. Ng5 {[%clk 0:09:30.8]} 14... exd4 {[%clk 0:09:33.6]} 15. Nce4 {[%clk 0:09:19.3]} 15... c5 {[%clk 0:09:27.5]} 16. Qe2 {[%clk 0:09:11.1]} 16... h6 {[%clk 0:09:24.2]} 17. Nxf6+ {[%clk 0:08:58.4]} 17... Nxf6 {[%clk 0:09:21.2]} 18. Ne4 {[%clk 0:08:58]} 18... Re8 {[%clk 0:09:17.1]} 19. Qf3 {[%clk 0:08:54.9]} 19... Qd5 {[%clk 0:09:06.1]} 20. Nxf6+ {[%clk 0:08:48.1]} 20... gxf6 {[%clk 0:09:01]} 21. Qxd5 {[%clk 0:08:46.6]} 21... Be6 {[%clk 0:08:59.3]} 22. Qe4 {[%clk 0:08:45.3]} 22... f5 {[%clk 0:08:57.5]} 23. Qh4 {[%clk 0:08:39.9]} 23... Kh7 {[%clk 0:08:56]} 24. Rfe1 {[%clk 0:08:36]} 24... Rg8 {[%clk 0:08:54.1]} 25. Rxe6 {[%clk 0:08:27.3]} 25... fxe6 {[%clk 0:08:52.3]} 26. Qe7+ {[%clk 0:08:26.6]} 26... Rg7 {[%clk 0:08:50.4]} 27. Qxe6 {[%clk 0:08:25.8]} 27... Rag8 {[%clk 0:08:47.8]} 28. Bxf5+ {[%clk 0:08:24.6]} 28... Kh8 {[%clk 0:08:46.6]} 29. g3 {[%clk 0:08:22.8]} 1-0